bitfinex-derivatives/quotes_BTCF0:USTF0_20241210
["timestamp","ask_amount","ask_price","bid_price","bid_amount"]
[1733848591552,0.3608,95102.0,95074.0,0.36092]
[1733848591751,0.052559,95079.0,95067.0,0.02086804]
[1733848592054,6e-05,95068.0,95066.0,0.3608]
[1733848592442,0.00011623,95067.0,95066.0,0.3608]
[1733848592859,0.00017623,95067.0,95066.0,0.3608]
[1733848593459,0.00017623,95067.0,95057.0,0.35332]
[1733848593759,6e-05,95058.0,95057.0,0.35332]
[1733848594361,6e-05,95058.0,95057.0,0.405891]
[1733848594567,0.052553,95089.0,95057.0,0.35332]
[1733848594868,0.3608,95092.0,95088.0,0.00012]
[1733848595261,0.052549,95097.0,95091.0,0.00012]
[1733848595458,0.052551,95093.0,95091.0,0.00012]
[1733848595663,0.00012556,95092.0,95070.0,0.65137097]
[1733848595868,0.00012556,95092.0,95082.0,0.052556]
[1733848596269,0.00012556,95092.0,95084.0,0.052556]
[1733848596461,0.00012556,95092.0,95086.0,0.052554]
[1733848596658,0.00012556,95092.0,95078.0,0.3608]
[1733848596868,0.00012556,95092.0,95077.0,0.052559]
[1733848597172,0.00612556,95092.0,95082.0,0.001]
[1733848597569,0.3608,95083.0,95082.0,0.001]
[1733848597767,0.41947756,95092.0,95069.0,0.33057862]
[1733848597968,0.41947756,95092.0,95080.0,0.29057097]
[1733848597969,0.36592556,95092.0,95080.0,0.29057097]
[1733848598167,0.36592556,95092.0,95086.0,0.052554]
[1733848599271,0.001,95089.0,95080.0,0.29057097]
[1733848599471,0.001,95089.0,95088.0,0.052553]
[1733848599970,0.00012556,95092.0,95086.0,0.003]
[1733848600359,6e-05,95087.0,95086.0,0.003]
[1733848600767,0.052566,95065.0,95057.0,0.35336]
[1733848601069,0.3608,95068.0,95057.0,0.30082354]
[1733848601272,0.3608,95068.0,95058.0,0.05257]
[1733848601663,0.3608,95068.0,95057.0,0.30082354]
[1733848601865,0.41337,95058.0,95057.0,0.30082354]
[1733848602064,0.41337,95058.0,95045.0,0.413377]
[1733848602267,0.052571,95057.0,95045.0,0.413377]
[1733848602464,0.3608,95058.0,95041.0,0.0001246]
[1733848602465,6e-05,95054.0,95041.0,0.0001246]
[1733848602663,0.413379,95042.0,95041.0,0.0001246]
[1733848602868,6e-05,95042.0,95041.0,0.0001246]
[1733848603961,6e-05,95042.0,95037.0,0.3608]
[1733848604362,6e-05,95038.0,95036.0,0.052582]
[1733848604671,0.3608,95053.0,95037.0,0.3608]
[1733848604868,0.3608,95053.0,95040.0,9.237e-05]
[1733848605070,0.052579,95041.0,95040.0,9.237e-05]
[1733848606067,0.052591,95020.0,95010.0,0.94746354]
[1733848606463,0.052588,95027.0,95010.0,1.23803451]
[1733848606666,0.052588,95027.0,95014.0,0.052594]
[1733848606864,0.052588,95027.0,95016.0,0.30826354]
[1733848607074,0.3608,95030.0,95024.0,0.052589]
[1733848607272,0.052583,95035.0,95020.0,0.29057097]
[1733848607469,0.3618,95042.0,95029.0,0.00012]
[1733848607667,6e-05,95021.0,95016.0,0.30826354]
[1733848607868,6e-05,95021.0,95019.0,0.052591]
[1733848608069,0.3608,95028.0,95019.0,0.052591]
[1733848608469,0.3608,95028.0,95027.0,0.00012]
[1733848608663,0.052584,95034.0,95027.0,0.00012]
[1733848608873,0.001,95030.0,95027.0,0.00012]
[1733848609175,0.001,95030.0,95029.0,0.052586]
[1733848609369,0.001,95030.0,95028.0,0.052587]
[1733848610074,0.001,95030.0,95027.0,0.40521007]
[1733848610573,0.001,95030.0,95028.0,0.052587]
[1733848610879,0.002,95030.0,95028.0,0.052587]
[1733848611178,0.001,95030.0,95028.0,0.052587]
[1733848611380,0.3608,95050.0,95033.0,0.052584]
[1733848611678,0.00941444,95049.0,95033.0,0.052584]
[1733848611881,0.00941444,95048.0,95033.0,0.052584]
[1733848612076,0.00941444,95047.0,95032.0,0.052584]
[1733848612381,0.00941444,95046.0,95033.0,0.052584]
[1733848612678,0.00941444,95045.0,95034.0,0.052583]
[1733848612878,0.3608,95050.0,95038.0,0.052581]
[1733848612879,0.00950939,95044.0,95038.0,0.052581]
[1733848613179,0.00950939,95043.0,95033.0,0.009]
[1733848613378,0.00951245,95042.0,95033.0,0.009]
[1733848613583,6e-05,95034.0,95033.0,0.009]
[1733848613783,0.00957245,95034.0,95033.0,0.009]
[1733848614580,0.06215545,95034.0,95033.0,0.009]
[1733848615179,0.00957245,95034.0,95015.0,0.00010361]
[1733848615377,0.3608,95032.0,95018.0,0.052592]
[1733848615579,0.052591,95021.0,95015.0,0.00010361]
[1733848615777,0.00951245,95020.0,95015.0,0.00010361]
[1733848615970,0.00951245,95020.0,95010.0,1.23919766]
[1733848616175,0.00951245,95019.0,95010.0,1.23919766]
[1733848616373,6e-05,95011.0,95010.0,0.93877567]
[1733848616578,6e-05,95011.0,95010.0,0.99137267]
[1733848616978,6e-05,95011.0,95010.0,1.35217267]
[1733848617286,0.001,95034.0,95010.0,1.35217267]
[1733848617287,0.053584,95034.0,95010.0,1.29957567]
[1733848617476,0.053584,95034.0,95033.0,0.009]
[1733848617672,0.06931078,95034.0,95033.0,0.00912]
[1733848617986,0.06831078,95034.0,95033.0,0.00012]
[1733848618283,0.42911078,95034.0,95033.0,0.00012]
[1733848618578,0.42911272,95034.0,95033.0,0.00012]
[1733848619180,0.052589,95023.0,95011.0,0.052596]
[1733848619481,0.052591,95020.0,95012.0,0.052595]
[1733848619670,0.01572872,95019.0,95012.0,0.052595]
[1733848619871,0.01572872,95019.0,95010.0,1.22934664]
[1733848620078,0.01572872,95019.0,95017.0,0.052592]
[1733848620277,0.3618,95034.0,95024.0,0.052588]
[1733848620278,0.005,95034.0,95024.0,0.052588]
[1733848620582,0.052585,95032.0,95026.0,0.3608]
[1733848620781,0.01582792,95031.0,95026.0,0.3608]
[1733848620982,0.01582792,95030.0,95026.0,0.3608]
[1733848621179,0.3608,95027.0,95010.0,0.94077567]
[1733848621384,0.001,95019.0,95012.0,0.009]
[1733848621573,0.01569149,95018.0,95017.0,0.052593]
[1733848621779,0.3608,95024.0,95010.0,1.28394264]
[1733848621975,0.001,95019.0,95017.0,0.009]
[1733848622180,0.001,95019.0,95013.0,0.3608]
[1733848622181,0.001,95019.0,95013.0,0.36985854]
[1733848622480,6e-05,95014.0,95013.0,0.31726354]
[1733848622675,6e-05,95014.0,95012.0,0.009]
[1733848623583,6e-05,95013.0,95012.0,0.3698]
[1733848624177,6e-05,95013.0,95011.0,0.052596]
[1733848624685,6e-05,95012.0,95011.0,0.052596]
[1733848626502,6e-05,95012.0,95011.0,0.053596]
[1733848627273,0.00106,95012.0,95011.0,0.057596]
[1733848628280,0.00106,95012.0,95011.0,0.005]
[1733848628478,0.00106,95012.0,95011.0,0.057596]
[1733848628983,0.3608,95034.0,95013.0,0.052595]
[1733848629180,0.3608,95034.0,95011.0,0.005]
[1733848629390,0.052587,95027.0,95015.0,0.052593]
[1733848629683,0.37048816,95026.0,95011.0,0.005]
[1733848629890,0.3608,95018.0,95011.0,0.005]
[1733848630195,0.00968816,95017.0,95015.0,0.052594]
[1733848630485,0.00968816,95016.0,95011.0,0.004]
[1733848630686,0.00968816,95015.0,95011.0,0.004]
[1733848630886,6e-05,95012.0,95011.0,0.052596]
[1733848631090,6e-05,95012.0,95010.0,0.89603069]
[1733848631292,0.00968016,95011.0,95010.0,0.84249423]
[1733848631487,0.00974016,95011.0,95010.0,0.84249423]
[1733848632896,0.00974016,95011.0,95010.0,1.20429423]
[1733848633583,0.00974016,95011.0,95010.0,0.84349423]
[1733848634189,0.00974016,95011.0,95010.0,0.79095777]
[1733848634482,0.00974016,95011.0,95010.0,1.09758031]
[1733848634685,0.01074016,95011.0,95010.0,1.10258031]
[1733848635579,0.01074016,95011.0,95010.0,1.11087536]
[1733848636389,0.01074016,95011.0,95010.0,0.79595777]
[1733848636592,0.01074016,95011.0,95010.0,1.11087536]
[1733848636775,0.01074016,95011.0,95010.0,1.11087942]
[1733848636975,0.01074016,95011.0,95010.0,0.79595777]
[1733848637190,0.01074016,95011.0,95010.0,1.15675777]
[1733848637387,0.01074016,95011.0,95010.0,1.41051785]
[1733848637993,0.3608,95038.0,95012.0,0.052595]
[1733848638285,0.052587,95027.0,95020.0,0.37301157]
[1733848638488,0.3608,95030.0,95020.0,0.37301157]
[1733848638489,0.00970076,95026.0,95020.0,0.37301157]
[1733848638690,0.3608,95021.0,95010.0,1.05829102]
[1733848638890,0.413396,95012.0,95010.0,0.74446131]
[1733848639081,0.00976076,95011.0,95010.0,0.74242131]
[1733848639692,0.00976076,95011.0,95010.0,0.79501831]
[1733848639997,0.00976076,95011.0,95010.0,0.74342131]
[1733848640183,0.00976076,95011.0,95004.0,0.31658457]
[1733848640184,0.052599,95005.0,95004.0,0.31500567]
[1733848640496,0.37056076,95005.0,95004.0,1e-08]
[1733848640987,0.00976076,95005.0,95004.0,0.04396747]
[1733848641391,0.37056076,95005.0,95004.0,0.04396747]
[1733848641593,6e-05,95005.0,95004.0,0.04396747]
[1733848641794,0.01002353,95005.0,95004.0,0.09656747]
[1733848642085,0.01002353,95005.0,95004.0,0.40616432]
[1733848642286,0.0010833,95011.0,95004.0,1.01436432]
[1733848642489,0.3608,95045.0,95035.0,0.052583]
[1733848642790,0.29057097,95080.0,95035.0,0.052583]
[1733848642791,0.3608,95059.0,95035.0,0.66236972]
[1733848643285,0.18238755,95044.0,95035.0,0.60983326]
[1733848643592,0.3608,95059.0,95046.0,0.052577]
[1733848643593,0.00012778,95047.0,95046.0,0.052577]
[1733848643979,0.00012778,95047.0,95046.0,0.052697]
[1733848644988,0.00012778,95047.0,95046.0,0.00012]
[1733848645194,0.05270378,95047.0,95046.0,0.00012]
[1733848645491,0.05870378,95047.0,95046.0,0.00012]
[1733848646290,0.05870378,95047.0,95020.0,0.04456638]
[1733848646291,0.35114495,95047.0,95020.0,0.04456638]
[1733848646490,0.35114495,95047.0,95000.0,0.39057097]
[1733848646491,0.3608,95023.0,95011.0,0.052596]
[1733848646696,0.3608,95023.0,95004.0,1e-08]
[1733848646697,0.052651,95021.0,95004.0,1e-08]
[1733848647094,6e-05,95005.0,95004.0,1e-08]
[1733848647279,6e-05,95005.0,95004.0,0.04409351]
[1733848648891,6e-05,95005.0,95004.0,0.08724686]
[1733848649091,6e-05,95005.0,95004.0,0.04409351]
[1733848649281,6e-05,95005.0,95004.0,0.04709351]
[1733848649482,6e-05,95005.0,95004.0,0.34709351]
[1733848649892,6e-05,95005.0,95004.0,0.34409351]
[1733848650094,6e-05,95005.0,95004.0,0.34709351]
[1733848650493,6e-05,95005.0,95004.0,0.04709351]
[1733848650893,0.00106,95005.0,95004.0,0.05609351]
[1733848651401,0.00106,95005.0,95004.0,0.09918701]
[1733848652094,6e-05,95005.0,95004.0,0.04709351]
[1733848652299,0.00106,95005.0,95004.0,0.41389351]
[1733848652594,0.00106,95005.0,95004.0,0.41689351]
[1733848653301,0.00106,95005.0,95004.0,0.41389351]
[1733848653595,0.00106,95005.0,95004.0,0.05609351]
[1733848654993,0.00106,95005.0,95004.0,0.36853455]
[1733848655598,0.00106,95005.0,95004.0,0.36553455]
[1733848655901,0.00106,95005.0,95004.0,0.05509351]
[1733848657696,6e-05,95005.0,95004.0,0.04609351]
[1733848657895,0.00106,95005.0,95004.0,0.05509351]
[1733848658094,6e-05,95021.0,95004.0,0.05509351]
[1733848658296,6e-05,95021.0,95020.0,0.413391]
[1733848658494,6e-05,95021.0,95020.0,0.36092]
[1733848659497,6e-05,95021.0,95020.0,0.713511]
[1733848659805,0.12306307,95046.0,95030.0,0.29057097]
[1733848659999,0.12306307,95046.0,95037.0,0.052581]
[1733848660200,0.12306307,95046.0,95045.0,0.00012]
[1733848661096,0.12306307,95046.0,95020.0,0.36237863]
[1733848661097,0.052585,95032.0,95030.0,0.006]
[1733848661301,0.3608,95031.0,95030.0,0.006]
[1733848661599,0.002,95021.0,95009.0,0.42982452]
[1733848661807,0.3608,95015.0,95009.0,0.37722752]
[1733848662109,6e-05,95010.0,95009.0,0.37722752]
[1733848662602,6e-05,95010.0,95009.0,0.42934687]
[1733848664592,6e-05,95010.0,95009.0,0.05811935]
[1733848664789,6e-05,95010.0,95009.0,0.05911935]
[1733848664997,6e-05,95010.0,95009.0,0.41991935]
[1733848666801,0.00106,95010.0,95009.0,0.41991935]
[1733848667700,0.00106,95010.0,95009.0,0.36738289]
[1733848669001,0.00106,95010.0,95009.0,0.41982958]
[1733848670599,0.3608,95031.0,95030.0,0.052586]
[1733848670800,0.3608,95031.0,95020.0,0.70396197]
[1733848671100,0.3608,95031.0,95030.0,0.00012]
[1733848671603,0.3608,95031.0,95030.0,0.052706]
[1733848671901,0.3648,95031.0,95030.0,0.00012]
[1733848673007,0.3658,95031.0,95030.0,0.00612]
[1733848673508,0.3658,95031.0,95030.0,0.058706]
[1733848673698,0.3658,95031.0,95025.0,0.05260979]
[1733848673901,0.3658,95031.0,95021.0,0.05259]
[1733848674107,0.3658,95031.0,95030.0,0.052586]
[1733848674811,0.3618,95031.0,95030.0,0.052586]
[1733848674999,0.3648,95031.0,95030.0,0.052586]
[1733848675611,0.3618,95031.0,95030.0,0.052586]
[1733848675810,0.3658,95031.0,95030.0,0.052586]
[1733848676011,0.3648,95031.0,95030.0,0.052586]
[1733848676311,0.3658,95031.0,95030.0,0.052586]
[1733848676698,0.3658,95031.0,95030.0,0.001]
[1733848677110,0.3658,95031.0,95030.0,0.053586]
[1733848678114,0.005,95031.0,95030.0,0.72322128]
[1733848679218,0.005,95031.0,95030.0,0.414386]
[1733848679510,0.005,95031.0,95030.0,0.053586]
[1733848679811,0.005,95031.0,95030.0,0.2517615]
[1733848680008,0.005,95031.0,95030.0,0.25176164]
[1733848680311,0.005,95031.0,95021.0,0.0530831]
[1733848680498,0.005,95031.0,95022.0,0.30901583]
[1733848680807,0.005,95031.0,95030.0,0.052586]
[1733848681010,0.3658,95031.0,95020.0,0.05264993]
[1733848681208,0.3658,95031.0,95026.0,0.25176774]
[1733848681209,0.052587,95027.0,95026.0,0.25176774]
[1733848681519,0.052587,95027.0,95010.0,0.3608]
[1733848681520,0.052587,95027.0,95018.0,0.25176774]
[1733848681705,0.052587,95027.0,95016.0,0.30436074]
[1733848681911,6e-05,95019.0,95017.0,0.25176774]
[1733848682203,6e-05,95019.0,95018.0,0.052592]
[1733848682804,6e-05,95019.0,95013.0,0.052595]
[1733848683013,6e-05,95019.0,95016.0,0.25180272]
[1733848683303,6e-05,95019.0,95017.0,0.052592]
[1733848683706,6e-05,95019.0,95014.0,0.25180272]
[1733848684407,0.00106,95019.0,95014.0,0.25180272]
[1733848685117,6e-05,95019.0,95015.0,0.25180272]
[1733848685300,0.00106,95019.0,95015.0,0.25180272]
[1733848685705,0.00106,95019.0,95018.0,0.052592]
[1733848685904,0.00106,95019.0,95017.0,0.25180272]
[1733848686201,0.00106,95019.0,95018.0,0.052592]
[1733848686400,6e-05,95019.0,95018.0,0.052592]
[1733848686606,0.00106,95019.0,95018.0,0.73230938]
[1733848686807,0.00106,95019.0,95018.0,0.73230681]
[1733848687012,0.09246927,95037.0,95036.0,0.052582]
[1733848687316,0.3608,95051.0,95046.0,0.052577]
[1733848687511,0.00056001,95055.0,95046.0,0.052577]
[1733848687711,0.09246927,95056.0,95046.0,0.052697]
[1733848687911,0.3608,95058.0,95046.0,0.052697]
[1733848688210,0.12306307,95061.0,95046.0,0.052697]
[1733848688411,0.12306307,95061.0,95046.0,0.00012]
[1733848688412,0.3608,95048.0,95046.0,0.00012]
[1733848688613,0.36092778,95047.0,95038.0,0.25166257]
[1733848688814,0.36092778,95047.0,95029.0,0.18878267]
[1733848688815,0.3608,95039.0,95029.0,0.18878267]
[1733848689017,0.3608,95039.0,95027.0,0.25171022]
[1733848689018,0.3608,95030.0,95027.0,0.38795643]
[1733848689216,0.052587,95028.0,95026.0,0.25171022]
[1733848689407,0.052589,95023.0,95022.0,0.37773726]
[1733848689608,0.3608,95025.0,95022.0,0.37773726]
[1733848689810,6e-05,95023.0,95022.0,0.37773726]
[1733848691314,0.00206,95023.0,95022.0,0.37773726]
[1733848691621,0.05557675,95023.0,95022.0,0.37773726]
[1733848691813,0.00206,95023.0,95022.0,0.37773726]
[1733848692012,0.00206,95023.0,95019.0,0.052592]
[1733848692519,6e-05,95020.0,95019.0,0.052592]
[1733848693421,6e-05,95020.0,95019.0,0.053592]
[1733848694013,0.00106,95020.0,95019.0,0.001]
[1733848694610,0.00206,95020.0,95019.0,0.001]
[1733848695016,0.00206,95020.0,95010.0,0.05344836]
[1733848695213,0.00206,95020.0,95012.0,0.052595]
[1733848695421,0.00206,95020.0,95015.0,0.052594]
[1733848695722,0.052595,95013.0,95004.0,1e-08]
[1733848695913,6e-05,95011.0,95004.0,1e-08]
[1733848696113,6e-05,95005.0,95004.0,1e-08]
[1733848696309,0.052659,95005.0,95004.0,1e-08]
[1733848696522,0.00018136,95005.0,95004.0,1e-08]
[1733848696723,0.00018136,95005.0,95004.0,0.05260001]
[1733848697108,0.00018136,95005.0,95004.0,0.05460001]
[1733848697319,0.00018136,95005.0,95004.0,0.00200001]
[1733848697724,0.00018136,95005.0,95004.0,0.05460001]
[1733848697920,0.00018136,95005.0,95004.0,0.05360001]
[1733848699025,0.00018136,95005.0,95004.0,0.00100001]
[1733848699321,0.00018136,95005.0,95004.0,1e-08]
[1733848699524,0.00118136,95005.0,95004.0,0.05360001]
[1733848700030,0.00118136,95005.0,95004.0,0.00100001]
[1733848700329,0.00118136,95005.0,94995.0,0.3608]
[1733848700330,0.36198136,95005.0,94984.0,0.35352083]
[1733848700527,0.36198136,95005.0,94989.0,0.3608]
[1733848700825,0.3608,94995.0,94988.0,0.3536]
[1733848701031,0.36192136,95005.0,94988.0,0.65558437]
[1733848701219,0.36192136,95005.0,94987.0,0.00011998]
[1733848701416,0.052615,94977.0,94966.0,0.3608]
[1733848701620,0.05262,94968.0,94936.0,0.99091119]
[1733848701829,0.052637,94937.0,94936.0,0.48808219]
[1733848702127,0.052638,94935.0,94916.0,0.43347113]
[1733848702319,8.619e-05,94935.0,94934.0,0.05215382]
[1733848702515,8.619e-05,94935.0,94916.0,0.43243113]
[1733848702516,0.052648,94917.0,94916.0,0.43243113]
[1733848702729,0.77432795,94917.0,94916.0,0.43243113]
[1733848702927,1.07438795,94917.0,94916.0,0.43243113]
[1733848703123,1.02166995,94917.0,94916.0,0.43769894]
[1733848703325,1.14771069,94917.0,94905.0,0.56440191]
[1733848703633,0.3608,94906.0,94905.0,0.56340191]
[1733848703925,0.360969,94906.0,94905.0,0.56340191]
[1733848704129,0.360969,94906.0,94905.0,0.052655]
[1733848704519,0.000169,94906.0,94905.0,0.052655]
[1733848704925,0.36079,94917.0,94916.0,0.052649]
[1733848705125,0.72259,94917.0,94902.0,0.69197831]
[1733848705321,0.3608,94903.0,94902.0,0.69197831]
[1733848705534,0.36086,94903.0,94902.0,0.74463431]
[1733848705927,0.36094008,94903.0,94902.0,0.74463431]
[1733848706122,0.00014008,94903.0,94902.0,0.052656]
[1733848706732,0.00014008,94903.0,94902.0,0.053656]
[1733848707036,0.12217436,94943.0,94902.0,0.053656]
[1733848707037,0.3608,94936.0,94934.0,0.052638]
[1733848707236,0.00056001,94945.0,94935.0,0.3608]
[1733848707425,0.09163077,94960.0,94959.0,0.052625]
[1733848707622,0.12217436,94974.0,94944.0,0.3608]
[1733848707623,0.09163077,94963.0,94944.0,0.3608]
[1733848707836,0.0052652,94963.0,94962.0,0.052623]
[1733848708022,0.00539443,94963.0,94962.0,0.052623]
[1733848708529,0.00539443,94963.0,94961.0,0.052623]
[1733848708723,0.00539443,94963.0,94962.0,0.3608]
[1733848709636,0.01039443,94963.0,94962.0,0.413423]
[1733848709932,0.01039443,94963.0,94962.0,0.3608]
[1733848710130,0.00639443,94963.0,94962.0,0.30926354]
[1733848711627,0.00639443,94963.0,94962.0,0.31726354]
[1733848711832,0.00639443,94963.0,94962.0,0.36979038]
[1733848712030,0.00212923,94963.0,94962.0,0.72709038]
[1733848712335,0.00212923,94963.0,94962.0,0.41882684]
[1733848712733,0.00112923,94963.0,94962.0,0.41882684]
[1733848712933,0.00212923,94963.0,94962.0,0.42082684]
[1733848713335,0.00212923,94963.0,94962.0,0.36829038]
[1733848713635,0.00112923,94963.0,94962.0,0.42077609]
[1733848714031,0.00112923,94963.0,94962.0,0.44234739]
[1733848714231,0.3608,94987.0,94962.0,0.44234739]
[1733848714427,0.17477036,95011.0,94986.0,0.3608]
[1733848714428,0.45299078,95006.0,94986.0,0.3608]
[1733848714633,0.45299078,95006.0,95005.0,0.052599]
[1733848714634,0.09163077,95006.0,95005.0,0.052599]
[1733848714935,0.09163077,95006.0,95005.0,0.413519]
[1733848715139,0.09163077,95006.0,95005.0,0.00012]
[1733848715329,0.09176147,95006.0,95005.0,0.00012]
[1733848715938,0.15382884,95022.0,95005.0,0.71486025]
[1733848716237,0.3608,95036.0,95005.0,0.71486025]
[1733848716238,0.00060001,95059.0,95042.0,0.052579]
[1733848716446,0.27689191,95063.0,95054.0,0.052572]
[1733848716631,0.27689191,95063.0,95054.0,0.35372]
[1733848716832,0.02064761,95098.0,95078.0,0.052559]
[1733848717034,0.02064761,95098.0,95097.0,0.052548]
[1733848717233,0.05244542,95133.0,95097.0,0.71464]
[1733848717431,0.05244542,95133.0,95121.0,0.3608]
[1733848717636,0.3608,95128.0,95113.0,0.02069604]
[1733848717836,0.3608,95128.0,95110.0,0.29057097]
[1733848718040,6e-05,95114.0,95110.0,0.29057097]
[1733848718241,0.00010141,95113.0,95110.0,0.29057097]
[1733848718437,0.29057097,95170.0,95110.0,0.29057097]
[1733848718438,0.3608,95159.0,95130.0,0.05253]
[1733848718633,0.3608,95159.0,95149.0,0.29057097]
[1733848718834,0.3608,95178.0,95158.0,0.00012]
[1733848719047,0.3608,95178.0,95160.0,0.29057097]
[1733848719235,0.3608,95178.0,95151.0,0.30838354]
[1733848719431,0.3608,95161.0,95152.0,8.971e-05]
[1733848719635,0.3608,95156.0,95152.0,8.971e-05]
[1733848719844,0.052518,95153.0,95152.0,8.971e-05]
[1733848720739,0.352518,95153.0,95152.0,8.971e-05]
[1733848720945,0.001,95128.0,95110.0,0.009]
[1733848721139,0.3608,95121.0,95110.0,0.29957097]
[1733848721643,0.3608,95121.0,95107.0,0.052543]
[1733848721845,0.3608,95121.0,95116.0,0.0001186]
[1733848722036,0.49,95120.0,95116.0,0.0001186]
[1733848722340,0.49,95120.0,95119.0,0.0205032]
[1733848722640,0.3608,95132.0,95119.0,0.0730392]
[1733848723046,0.3608,95132.0,95131.0,0.00012]
[1733848723253,0.3608,95140.0,95131.0,0.00012]
[1733848723638,0.49,95139.0,95125.0,0.00011403]
[1733848723842,0.3608,95132.0,95125.0,0.00011403]
[1733848724142,0.49,95139.0,95125.0,0.00011403]
[1733848724143,0.49056001,95139.0,95126.0,0.052532]
[1733848724339,0.49,95139.0,95129.0,0.29057097]
[1733848724541,0.49,95139.0,95125.0,0.00011403]
[1733848724744,0.3608,95140.0,95130.0,0.3608]
[1733848725046,0.3608,95159.0,95150.0,0.052519]
[1733848725256,0.3608,95169.0,95168.0,0.052509]
[1733848725548,0.02080796,95194.0,95168.0,0.36092]
[1733848725746,0.3608,95208.0,95176.0,0.3608]
[1733848725941,0.0525,95186.0,95168.0,0.36092]
[1733848726143,0.00013641,95173.0,95168.0,0.36092]
[1733848726549,0.05264341,95173.0,95168.0,0.38182044]
[1733848726745,0.052509,95170.0,95168.0,0.00012]
[1733848727145,0.00013641,95173.0,95168.0,0.00012]
[1733848727453,0.052509,95169.0,95168.0,0.00012]
[1733848728248,0.05252,95150.0,95148.0,0.00157641]
[1733848728447,0.3608,95159.0,95142.0,0.33071948]
[1733848728642,6e-05,95149.0,95147.0,0.052521]
[1733848729553,6e-05,95149.0,95144.0,0.0210287]
[1733848729846,6e-05,95145.0,95144.0,0.0735517]
[1733848730043,0.001,95159.0,95144.0,0.3210287]
[1733848730239,0.00113641,95173.0,95157.0,0.3608]
[1733848730447,0.3608,95168.0,95157.0,0.3608]
[1733848730850,0.00013641,95173.0,95171.0,0.052507]
[1733848731039,0.052493,95198.0,95173.0,0.052506]
[1733848731240,0.052491,95202.0,95193.0,0.3608]
[1733848731561,0.052493,95198.0,95193.0,0.30826354]
[1733848731847,0.95137097,95210.0,95182.0,0.3608]
[1733848732045,7.44e-05,95197.0,95182.0,0.3608]
[1733848732246,6e-05,95183.0,95182.0,0.3608]
[1733848732452,0.052495,95195.0,95182.0,0.3608]
[1733848732642,0.3608,95183.0,95173.0,0.00157608]
[1733848732949,0.413366,95174.0,95173.0,0.00157608]
[1733848733647,1.203366,95174.0,95144.0,0.009]
[1733848733848,0.052515,95157.0,95144.0,0.009]
[1733848734050,6e-05,95145.0,95144.0,0.009]
[1733848734352,6e-05,95145.0,95141.0,0.02079139]
[1733848734555,0.052523,95144.0,95140.0,0.32905493]
[1733848734850,0.3608,95164.0,95140.0,0.38157893]
[1733848734851,6e-05,95141.0,95140.0,0.38157893]
[1733848735838,6e-05,95141.0,95140.0,0.32905493]
[1733848736347,6e-05,95141.0,95140.0,0.38287667]
[1733848736855,0.052519,95151.0,95140.0,0.38287667]
[1733848737046,0.052516,95156.0,95148.0,0.3608]
[1733848737245,0.3608,95176.0,95150.0,0.00012]
[1733848737246,0.052509,95170.0,95150.0,0.00012]
[1733848737446,0.052506,95175.0,95160.0,0.29057097]
[1733848737649,0.052506,95174.0,95169.0,0.00012]
[1733848737839,0.052506,95174.0,95160.0,0.29057097]
[1733848738342,0.3608,95185.0,95166.0,0.3608]
[1733848738549,0.052503,95180.0,95170.0,0.29057097]
[1733848738854,0.052505,95176.0,95170.0,0.29057097]
[1733848739452,0.052505,95176.0,95166.0,0.3608]
[1733848739656,0.3608,95176.0,95160.0,0.004]
[1733848739949,0.052513,95161.0,95160.0,0.004]
[1733848740754,6e-05,95161.0,95150.0,0.00157641]
[1733848740944,0.052517,95154.0,95150.0,0.00157641]
[1733848741147,6e-05,95151.0,95150.0,0.00157641]
[1733848742148,0.052579,95151.0,95150.0,0.00157641]
[1733848742446,6e-05,95151.0,95150.0,0.00657641]
[1733848742647,0.00306,95151.0,95150.0,0.00657641]
[1733848743250,0.00306,95151.0,95069.0,0.42687073]
[1733848743251,0.66394852,95151.0,95112.0,0.3608]
[1733848743459,0.052532,95126.0,95106.0,0.052543]
[1733848743642,0.052532,95126.0,95098.0,0.3608]
[1733848743643,6e-05,95126.0,95110.0,0.05314905]
[1733848743846,6e-05,95126.0,95098.0,0.30995436]
[1733848743847,0.3608,95112.0,95098.0,0.30995436]
[1733848744052,6e-05,95111.0,95099.0,0.052547]
[1733848744244,0.052547,95100.0,95098.0,0.30995436]
[1733848744658,0.00018746,95099.0,95088.0,0.0526517]
[1733848744856,0.052548,95098.0,95090.0,0.052552]
[1733848745055,0.052551,95093.0,95088.0,9.87e-05]
[1733848745360,6e-05,95089.0,95088.0,9.87e-05]
[1733848746054,0.052613,95089.0,95088.0,9.87e-05]
[1733848746458,0.052613,95089.0,95067.0,0.30490766]
[1733848746459,0.05256,95076.0,95067.0,0.30490766]
[1733848746650,0.052565,95068.0,95067.0,0.25394899]
[1733848746850,0.05257,95058.0,95049.0,0.42687073]
[1733848747359,0.05263,95058.0,95049.0,0.42687073]
[1733848747671,0.71350995,95058.0,95049.0,0.42687073]
[1733848747848,0.413374,95050.0,95049.0,0.42687073]
[1733848748049,0.413434,95050.0,95049.0,0.42687073]
[1733848748249,0.052581,95039.0,95038.0,0.55935938]
[1733848748458,0.413381,95039.0,95038.0,0.55935938]
[1733848748657,6e-05,95039.0,95038.0,0.55935938]
[1733848749856,6e-05,95039.0,95033.0,0.623634]
[1733848750058,6e-05,95039.0,95033.0,0.622594]
[1733848750252,6e-05,95034.0,95033.0,0.622594]
[1733848750452,0.052643,95034.0,95020.0,0.001]
[1733848750658,6e-05,95034.0,95019.0,0.052591]
[1733848750955,6e-05,95020.0,95019.0,0.052591]
[1733848751458,6e-05,95020.0,95019.0,0.352592]
[1733848751655,0.005,95039.0,95019.0,0.35219802]
[1733848751852,0.3608,95068.0,95038.0,0.3608]
[1733848752054,0.3608,95096.0,95052.0,0.3608]
[1733848752465,0.3608,95096.0,95078.0,0.3608]
[1733848752655,0.3608,95114.0,95082.0,0.30826354]
[1733848752851,0.3608,95121.0,95082.0,0.96166354]
[1733848753052,0.3608,95129.0,95111.0,0.3608]
[1733848753273,0.00056001,95137.0,95128.0,0.3608]
[1733848753561,0.29057097,95180.0,95128.0,0.3608]